[Event "Titled Tuesday Blitz April 11 Early 2023"]
[White "lluiss"]
[Black "mohsengabr2002"]
[WhiteElo "2276"]
[BlackElo "2425"]
[Result "0-1"]
[Round "11"]
[TimeControl "180+2"]
[Date "2023.04.11"]
[WhiteClock "0:00:03"]
[BlackClock "0:01:02"]

1. c4 {[%clk 0:03:00]}  f6 {[%clk 0:02:58]} 2. Nc3 {[%clk 0:02:58]}  g6 {[%clk 0:02:58]} 3. g3 {[%clk 0:02:57]}  e6 {[%clk 0:02:59]} 4. Bg2 {[%clk 0:02:57]}  Nh6 {[%clk 0:02:59]} 5. b4 {[%clk 0:02:57]}  Nf7 {[%clk 0:03:00]} 6. Bb2 {[%clk 0:02:57]}  Bg7 {[%clk 0:02:59]} 7. a4 {[%clk 0:02:56]}  O-O {[%clk 0:02:59]} 8. b5 {[%clk 0:02:56]}  c6 {[%clk 0:02:57]} 9. h4 {[%clk 0:02:53]}  d5 {[%clk 0:02:57]} 10. cxd5 {[%clk 0:02:44]}  cxd5 {[%clk 0:02:51]} 11. d4 {[%clk 0:02:33]}  a5 {[%clk 0:02:50]} 12. h5 {[%clk 0:02:32]}  Nd7 {[%clk 0:02:45]} 13. hxg6 {[%clk 0:02:29]}  hxg6 {[%clk 0:02:45]} 14. Nf3 {[%clk 0:02:30]}  Nb6 {[%clk 0:02:44]} 15. Ba3 {[%clk 0:02:30]}  Re8 {[%clk 0:02:43]} 16. Bc5 {[%clk 0:02:07]}  Nc4 {[%clk 0:02:39]} 17. Nd2 {[%clk 0:02:07]}  b6 {[%clk 0:02:38]} 18. Nxc4 {[%clk 0:02:07]}  bxc5 {[%clk 0:02:38]} 19. dxc5 {[%clk 0:02:04]}  Qe7 {[%clk 0:02:32]} 20. Nb6 {[%clk 0:00:45]}  Qxc5 {[%clk 0:02:28]} 21. Nxa8 {[%clk 0:00:45]}  Qxc3+ {[%clk 0:02:27]} 22. Kf1 {[%clk 0:00:46]}  Bb7 {[%clk 0:02:07]} 23. Rc1 {[%clk 0:00:45]}  Qb4 {[%clk 0:02:00]} 24. Nc7 {[%clk 0:00:44]}  Re7 {[%clk 0:02:00]} 25. Rh4 {[%clk 0:00:36]}  Qd6 {[%clk 0:01:56]} 26. Qc2 {[%clk 0:00:33]}  f5 {[%clk 0:01:52]} 27. f4 {[%clk 0:00:24]}  Bd4 {[%clk 0:01:45]} 28. Na6 {[%clk 0:00:15]}  Bxa6 {[%clk 0:01:42]} 29. bxa6 {[%clk 0:00:15]}  Qxa6 {[%clk 0:01:42]} 30. Qc8+ {[%clk 0:00:15]}  Qxc8 {[%clk 0:01:43]} 31. Rxc8+ {[%clk 0:00:16]}  Kg7 {[%clk 0:01:42]} 32. Ra8 {[%clk 0:00:13]}  Bc3 {[%clk 0:01:41]} 33. Bf3 {[%clk 0:00:13]}  Rb7 {[%clk 0:01:37]} 34. g4 {[%clk 0:00:11]}  Nd6 {[%clk 0:01:32]} 35. Rhh8 {[%clk 0:00:09]}  Kf7 {[%clk 0:01:23]} 36. g5 {[%clk 0:00:08]}  Bxh8 {[%clk 0:01:22]} 37. Rxh8 {[%clk 0:00:06]}  Rb4 {[%clk 0:01:21]} 38. Rh7+ {[%clk 0:00:06]}  Kf8 {[%clk 0:01:20]} 39. Rd7 {[%clk 0:00:05]}  Nc4 {[%clk 0:01:13]} 40. Rd8+ {[%clk 0:00:05]}  Ke7 {[%clk 0:01:13]} 41. Rg8 {[%clk 0:00:04]}  Kf7 {[%clk 0:01:14]} 42. Rh8 {[%clk 0:00:04]}  Kg7 {[%clk 0:01:13]} 43. Re8 {[%clk 0:00:03]}  Kf7 {[%clk 0:01:12]} 44. Rh8 {[%clk 0:00:03]}  Rxa4 {[%clk 0:01:13]} 45. Rh7+ {[%clk 0:00:03]}  Kf8 {[%clk 0:01:12]} 46. Rh8+ {[%clk 0:00:03]}  Kg7 {[%clk 0:01:12]} 47. Re8 {[%clk 0:00:03]}  Kf7 {[%clk 0:01:11]} 48. Rb8 {[%clk 0:00:03]}  Nd2+ {[%clk 0:01:10]} 49. Kf2 {[%clk 0:00:02]}  Nxf3 {[%clk 0:01:06]} 50. Kxf3 {[%clk 0:00:02]}  Ra3+ {[%clk 0:01:06]} 51. Kf2 {[%clk 0:00:02]}  a4 {[%clk 0:01:06]} 52. Rb7+ {[%clk 0:00:03]}  Ke8 {[%clk 0:01:06]} 53. Rb8+ {[%clk 0:00:03]}  Kd7 {[%clk 0:01:05]} 54. Rg8 {[%clk 0:00:03]}  Rb3 {[%clk 0:01:04]} 55. Rxg6 {[%clk 0:00:04]}  Kd6 {[%clk 0:01:05]} 56. Rg7 {[%clk 0:00:04]}  a3 {[%clk 0:01:05]} 57. Ra7 {[%clk 0:00:05]}  d4 {[%clk 0:01:05]} 58. g6 {[%clk 0:00:04]}  Rb8 {[%clk 0:01:02]} 59. Rxa3 {[%clk 0:00:03]}  Rg8 {[%clk 0:01:02]} 60. Rg3 {[%clk 0:00:04]}  e5 {[%clk 0:01:01]} 61. fxe5+ {[%clk 0:00:02]}  Kxe5 {[%clk 0:01:02]} 62. Kf3 {[%clk 0:00:03]}  Kf6 {[%clk 0:01:02]} 0-1


[Site "https://www.chess.com"]

[Event "Titled Tuesday Blitz April 11 Early 2023"]
[White "FuenfgegenWilly"]
[Black "Gracia Alvarez, Gerardo Antonio"]
[BlackFideId "5109124"]
[WhiteElo "2260"]
[BlackElo "2160"]
[Result "1-0"]
[Round "11"]
[TimeControl "180+2"]
[Date "2023.04.11"]
[WhiteClock "0:00:12"]
[BlackClock "0:00:01"]

1. Nf3 {[%clk 0:03:00]}  d5 {[%clk 0:02:57]} 2. e3 {[%clk 0:03:01]}  Nf6 {[%clk 0:02:56]} 3. c4 {[%clk 0:02:59]}  c6 {[%clk 0:02:55]} 4. b3 {[%clk 0:02:59]}  Bg4 {[%clk 0:02:53]} 5. h3 {[%clk 0:02:59]}  Bh5 {[%clk 0:02:50]} 6. Bb2 {[%clk 0:02:58]}  Nbd7 {[%clk 0:02:49]} 7. Nc3 {[%clk 0:02:54]}  e6 {[%clk 0:02:48]} 8. Ne2 {[%clk 0:02:37]}  Bxf3 {[%clk 0:02:39]} 9. gxf3 {[%clk 0:02:38]}  Bd6 {[%clk 0:02:39]} 10. Rg1 {[%clk 0:02:36]}  O-O {[%clk 0:02:39]} 11. Ng3 {[%clk 0:02:31]}  Be5 {[%clk 0:02:39]} 12. Qc2 {[%clk 0:02:28]}  Qc7 {[%clk 0:02:32]} 13. f4 {[%clk 0:02:26]}  Bxb2 {[%clk 0:02:29]} 14. Qxb2 {[%clk 0:02:27]}  Rfe8 {[%clk 0:02:19]} 15. Rc1 {[%clk 0:02:25]}  a5 {[%clk 0:02:15]} 16. Be2 {[%clk 0:02:25]}  a4 {[%clk 0:02:12]} 17. cxd5 {[%clk 0:02:22]}  exd5 {[%clk 0:02:08]} 18. Nf5 {[%clk 0:02:20]}  g6 {[%clk 0:02:04]} 19. h4 {[%clk 0:02:18]}  axb3 {[%clk 0:01:50]} 20. axb3 {[%clk 0:02:18]}  Kf8 {[%clk 0:01:45]} 21. Nh6 {[%clk 0:02:07]}  Qd6 {[%clk 0:01:37]} 22. h5 {[%clk 0:02:05]}  c5 {[%clk 0:01:28]} 23. hxg6 {[%clk 0:02:00]}  hxg6 {[%clk 0:01:29]} 24. Qb1 {[%clk 0:01:51]}  Qe6 {[%clk 0:00:49]} 25. f5 {[%clk 0:01:29]}  Qe4 {[%clk 0:00:34]} 26. fxg6 {[%clk 0:01:23]}  fxg6 {[%clk 0:00:32]} 27. Rxg6 {[%clk 0:00:57]}  Qxb1 {[%clk 0:00:29]} 28. Rxb1 {[%clk 0:00:58]}  Ne4 {[%clk 0:00:17]} 29. Bb5 {[%clk 0:00:55]}  Rad8 {[%clk 0:00:11]} 30. f3 {[%clk 0:00:53]}  Nef6 {[%clk 0:00:09]} 31. Ke2 {[%clk 0:00:42]}  Ke7 {[%clk 0:00:06]} 32. Rg7+ {[%clk 0:00:37]}  Ke6 {[%clk 0:00:06]} 33. Rc1 {[%clk 0:00:33]}  Rh8 {[%clk 0:00:05]} 34. Ng4 {[%clk 0:00:28]}  Nxg4 {[%clk 0:00:03]} 35. fxg4 {[%clk 0:00:25]}  Rh2+ {[%clk 0:00:04]} 36. Kd3 {[%clk 0:00:25]}  Ne5+ {[%clk 0:00:04]} 37. Kc2 {[%clk 0:00:26]}  d4 {[%clk 0:00:03]} 38. exd4 {[%clk 0:00:25]}  Rxd4 {[%clk 0:00:03]} 39. Rxb7 {[%clk 0:00:23]}  Rdxd2+ {[%clk 0:00:02]} 40. Kc3 {[%clk 0:00:22]}  Rd4 {[%clk 0:00:02]} 41. Bc4+ {[%clk 0:00:16]}  Nxc4 {[%clk 0:00:02]} 42. bxc4 {[%clk 0:00:17]}  Rh3+ {[%clk 0:00:02]} 43. Kb2 {[%clk 0:00:17]}  Rd2+ {[%clk 0:00:01]} 44. Kb1 {[%clk 0:00:16]}  Rhh2 {[%clk 0:00:01]} 45. Rb5 {[%clk 0:00:13]}  Kd6 {[%clk 0:00:01]} 46. g5 {[%clk 0:00:12]} 1-0


[Site "https://www.chess.com"]

[Event "Titled Tuesday Blitz April 11 Early 2023"]
[White "Nugumanov, Bakhtiyar"]
[Black "Tarasova, Viktoriya"]
[WhiteFideId "13701797"]
[BlackFideId "4175840"]
[WhiteElo "2209"]
[BlackElo "2182"]
[Result "1/2-1/2"]
[Round "11"]
[TimeControl "180+2"]
[Date "2023.04.11"]
[WhiteClock "0:00:05"]
[BlackClock "0:00:03"]

1. Nf3 {[%clk 0:03:00]}  Nf6 {[%clk 0:02:57]} 2. c4 {[%clk 0:03:00]}  e6 {[%clk 0:02:55]} 3. g3 {[%clk 0:03:00]}  b6 {[%clk 0:02:54]} 4. Bg2 {[%clk 0:03:01]}  Bb7 {[%clk 0:02:55]} 5. O-O {[%clk 0:03:02]}  c5 {[%clk 0:02:56]} 6. Nc3 {[%clk 0:03:02]}  Be7 {[%clk 0:02:55]} 7. Re1 {[%clk 0:03:03]}  O-O {[%clk 0:02:54]} 8. e4 {[%clk 0:03:03]}  d6 {[%clk 0:02:55]} 9. d4 {[%clk 0:03:03]}  cxd4 {[%clk 0:02:54]} 10. Nxd4 {[%clk 0:03:04]}  Qc8 {[%clk 0:02:47]} 11. b3 {[%clk 0:02:59]}  Nc6 {[%clk 0:02:46]} 12. Bb2 {[%clk 0:02:54]}  Rd8 {[%clk 0:02:46]} 13. Nc2 {[%clk 0:02:53]}  a6 {[%clk 0:02:44]} 14. Qe2 {[%clk 0:02:45]}  Qc7 {[%clk 0:02:44]} 15. Rad1 {[%clk 0:02:45]}  Rac8 {[%clk 0:02:43]} 16. f4 {[%clk 0:02:45]}  Qb8 {[%clk 0:02:38]} 17. h3 {[%clk 0:02:42]}  Nd7 {[%clk 0:02:28]} 18. f5 {[%clk 0:01:59]}  Nde5 {[%clk 0:02:24]} 19. Ne3 {[%clk 0:01:51]}  Bf6 {[%clk 0:02:03]} 20. g4 {[%clk 0:01:49]}  h6 {[%clk 0:02:02]} 21. Qf2 {[%clk 0:01:45]}  Ba8 {[%clk 0:01:57]} 22. h4 {[%clk 0:01:45]}  b5 {[%clk 0:01:55]} 23. Qg3 {[%clk 0:01:36]}  bxc4 {[%clk 0:01:32]} 24. g5 {[%clk 0:01:37]}  hxg5 {[%clk 0:01:33]} 25. hxg5 {[%clk 0:01:37]}  Be7 {[%clk 0:01:33]} 26. g6 {[%clk 0:01:24]}  fxg6 {[%clk 0:00:59]} 27. fxe6 {[%clk 0:01:04]}  cxb3 {[%clk 0:00:49]} 28. Ncd5 {[%clk 0:00:51]}  bxa2 {[%clk 0:00:45]} 29. Ba1 {[%clk 0:00:38]}  Qa7 {[%clk 0:00:43]} 30. Kh2 {[%clk 0:00:20]}  Rb8 {[%clk 0:00:36]} 31. Ng4 {[%clk 0:00:19]}  Nxg4+ {[%clk 0:00:06]} 32. Qxg4 {[%clk 0:00:20]}  Ne5 {[%clk 0:00:06]} 33. Bxe5 {[%clk 0:00:20]}  Bxd5 {[%clk 0:00:05]} 34. Qxg6 {[%clk 0:00:21]}  dxe5 {[%clk 0:00:03]} 35. Qf7+ {[%clk 0:00:21]}  Kh8 {[%clk 0:00:03]} 36. Qh5+ {[%clk 0:00:21]}  Kg8 {[%clk 0:00:03]} 37. Qf7+ {[%clk 0:00:21]}  Kh8 {[%clk 0:00:03]} 38. Rd3 {[%clk 0:00:15]}  Rb3 {[%clk 0:00:02]} 39. Qh5+ {[%clk 0:00:05]}  Kg8 {[%clk 0:00:02]} 40. Qf7+ {[%clk 0:00:06]}  Kh8 {[%clk 0:00:03]} 41. Qh5+ {[%clk 0:00:04]}  Kg8 {[%clk 0:00:03]} 42. Qf7+ {[%clk 0:00:05]}  Kh8 {[%clk 0:00:03]} 1/2-1/2


[Site "https://www.chess.com"]

[Event "Titled Tuesday Blitz April 11 Early 2023"]
[White "Belov, Alexei"]
[Black "Sailer, Mike"]
[WhiteFideId "4128206"]
[BlackFideId "2012901"]
[WhiteElo "2592"]
[BlackElo "2109"]
[Result "1-0"]
[Round "11"]
[TimeControl "180+2"]
[Date "2023.04.11"]
[WhiteClock "0:00:17"]
[BlackClock "0:00:08"]

1. e4 {[%clk 0:03:00]}  d5 {[%clk 0:03:00]} 2. exd5 {[%clk 0:03:00]}  Qxd5 {[%clk 0:03:00]} 3. Nc3 {[%clk 0:03:01]}  Qd6 {[%clk 0:02:57]} 4. Nf3 {[%clk 0:03:00]}  Nf6 {[%clk 0:02:52]} 5. d4 {[%clk 0:03:00]}  c6 {[%clk 0:02:52]} 6. Bd3 {[%clk 0:03:00]}  Bg4 {[%clk 0:02:52]} 7. Ne4 {[%clk 0:02:57]}  Nxe4 {[%clk 0:02:51]} 8. Bxe4 {[%clk 0:02:58]}  Nd7 {[%clk 0:02:51]} 9. O-O {[%clk 0:02:57]}  e6 {[%clk 0:02:50]} 10. c3 {[%clk 0:02:47]}  Nf6 {[%clk 0:02:48]} 11. Bd3 {[%clk 0:02:47]}  Be7 {[%clk 0:02:45]} 12. Be2 {[%clk 0:02:45]}  O-O {[%clk 0:02:45]} 13. Ne5 {[%clk 0:02:44]}  Bxe2 {[%clk 0:02:45]} 14. Qxe2 {[%clk 0:02:44]}  c5 {[%clk 0:02:37]} 15. dxc5 {[%clk 0:02:44]}  Qxc5 {[%clk 0:02:35]} 16. Bg5 {[%clk 0:02:45]}  Rfd8 {[%clk 0:02:33]} 17. Rad1 {[%clk 0:02:44]}  h6 {[%clk 0:02:29]} 18. Bxf6 {[%clk 0:02:37]}  Bxf6 {[%clk 0:02:20]} 19. Nd7 {[%clk 0:02:37]}  Qf5 {[%clk 0:02:20]} 20. Nxf6+ {[%clk 0:02:34]}  Qxf6 {[%clk 0:02:17]} 21. Qe4 {[%clk 0:02:34]}  Qe7 {[%clk 0:02:12]} 22. g3 {[%clk 0:02:33]}  g6 {[%clk 0:02:03]} 23. c4 {[%clk 0:02:32]}  b6 {[%clk 0:02:02]} 24. h4 {[%clk 0:02:25]}  h5 {[%clk 0:02:02]} 25. b3 {[%clk 0:02:23]}  Qc5 {[%clk 0:01:51]} 26. Qf4 {[%clk 0:02:17]}  Rac8 {[%clk 0:01:41]} 27. Qf6 {[%clk 0:02:14]}  Rd6 {[%clk 0:01:22]} 28. Rfe1 {[%clk 0:02:00]}  Rc7 {[%clk 0:01:20]} 29. Rxd6 {[%clk 0:01:21]}  Qxd6 {[%clk 0:01:19]} 30. Re3 {[%clk 0:01:19]}  Rd7 {[%clk 0:01:16]} 31. a4 {[%clk 0:01:18]}  a5 {[%clk 0:01:06]} 32. Kh2 {[%clk 0:01:13]}  Qd4 {[%clk 0:01:00]} 33. Qxd4 {[%clk 0:01:08]}  Rxd4 {[%clk 0:01:00]} 34. Kg2 {[%clk 0:01:09]}  Kf8 {[%clk 0:00:52]} 35. Re5 {[%clk 0:01:09]}  Ke7 {[%clk 0:00:50]} 36. Rb5 {[%clk 0:01:09]}  Rd6 {[%clk 0:00:51]} 37. Kf3 {[%clk 0:00:53]}  Kd7 {[%clk 0:00:48]} 38. c5 {[%clk 0:00:51]}  bxc5 {[%clk 0:00:48]} 39. Rxa5 {[%clk 0:00:51]}  Rd3+ {[%clk 0:00:42]} 40. Ke4 {[%clk 0:00:48]}  Rxb3 {[%clk 0:00:42]} 41. Ra7+ {[%clk 0:00:43]}  Ke8 {[%clk 0:00:36]} 42. Ke5 {[%clk 0:00:42]}  Rf3 {[%clk 0:00:32]} 43. Kd6 {[%clk 0:00:42]}  Kf8 {[%clk 0:00:27]} 44. Kxc5 {[%clk 0:00:37]}  Rxf2 {[%clk 0:00:28]} 45. a5 {[%clk 0:00:36]}  Rf3 {[%clk 0:00:25]} 46. a6 {[%clk 0:00:36]}  Rxg3 {[%clk 0:00:26]} 47. Ra8+ {[%clk 0:00:30]}  Ke7 {[%clk 0:00:23]} 48. a7 {[%clk 0:00:30]}  Ra3 {[%clk 0:00:21]} 49. Kb6 {[%clk 0:00:30]}  Rb3+ {[%clk 0:00:08]} 50. Kc5 {[%clk 0:00:29]}  Ra3 {[%clk 0:00:09]} 51. Kd4 {[%clk 0:00:25]}  Kf6 {[%clk 0:00:08]} 52. Kc5 {[%clk 0:00:23]}  Kf5 {[%clk 0:00:06]} 53. Kb6 {[%clk 0:00:23]}  e5 {[%clk 0:00:05]} 54. Rf8 {[%clk 0:00:22]}  Rxa7 {[%clk 0:00:05]} 55. Kxa7 {[%clk 0:00:22]}  f6 {[%clk 0:00:06]} 56. Kb6 {[%clk 0:00:22]}  g5 {[%clk 0:00:06]} 57. hxg5 {[%clk 0:00:21]}  Kxg5 {[%clk 0:00:07]} 58. Kc5 {[%clk 0:00:22]}  h4 {[%clk 0:00:08]} 59. Kd5 {[%clk 0:00:22]}  h3 {[%clk 0:00:07]} 60. Ke4 {[%clk 0:00:21]}  Kg4 {[%clk 0:00:07]} 61. Rg8+ {[%clk 0:00:21]}  Kh4 {[%clk 0:00:06]} 62. Kf3 {[%clk 0:00:19]}  f5 {[%clk 0:00:06]} 63. Rh8+ {[%clk 0:00:19]}  Kg5 {[%clk 0:00:07]} 64. Rxh3 {[%clk 0:00:19]}  e4+ {[%clk 0:00:08]} 65. Ke3 {[%clk 0:00:17]}  Kg4 {[%clk 0:00:08]} 66. Rh8 {[%clk 0:00:17]} 1-0


[Site "https://www.chess.com"]

[Event "Titled Tuesday Blitz April 11 Early 2023"]
[White "Smith, Garrett L"]
[Black "Turzo, Attila"]
[WhiteFideId "2024829"]
[BlackFideId "704954"]
[WhiteElo "2321"]
[BlackElo "2472"]
[Result "0-1"]
[Round "11"]
[TimeControl "180+2"]
[Date "2023.04.11"]
[WhiteClock "0:00:14"]
[BlackClock "0:01:02"]

1. e4 {[%clk 0:03:00]}  c5 {[%clk 0:02:57]} 2. a3 {[%clk 0:03:00]}  g6 {[%clk 0:02:51]} 3. b4 {[%clk 0:03:01]}  Bg7 {[%clk 0:02:50]} 4. Nc3 {[%clk 0:03:01]}  d6 {[%clk 0:02:47]} 5. Nf3 {[%clk 0:03:00]}  Nf6 {[%clk 0:02:46]} 6. Rb1 {[%clk 0:02:59]}  O-O {[%clk 0:02:45]} 7. Be2 {[%clk 0:02:54]}  b6 {[%clk 0:02:36]} 8. O-O {[%clk 0:02:53]}  Nc6 {[%clk 0:02:32]} 9. Bb5 {[%clk 0:02:36]}  Bb7 {[%clk 0:02:26]} 10. Re1 {[%clk 0:02:32]}  Nd7 {[%clk 0:02:22]} 11. Bxc6 {[%clk 0:02:15]}  Bxc6 {[%clk 0:02:22]} 12. d4 {[%clk 0:02:15]}  cxd4 {[%clk 0:02:19]} 13. Nxd4 {[%clk 0:02:15]}  Bb7 {[%clk 0:02:19]} 14. Be3 {[%clk 0:02:11]}  Rc8 {[%clk 0:02:18]} 15. Rb3 {[%clk 0:02:11]}  Ne5 {[%clk 0:02:14]} 16. Nd5 {[%clk 0:01:58]}  e6 {[%clk 0:02:11]} 17. Nc3 {[%clk 0:01:56]}  a6 {[%clk 0:02:09]} 18. b5 {[%clk 0:01:54]}  a5 {[%clk 0:02:03]} 19. f3 {[%clk 0:01:50]}  Nc4 {[%clk 0:02:01]} 20. Bf2 {[%clk 0:01:23]}  Qc7 {[%clk 0:01:59]} 21. h3 {[%clk 0:01:15]}  Rfd8 {[%clk 0:01:57]} 22. Bh4 {[%clk 0:01:11]}  Rd7 {[%clk 0:01:53]} 23. Nde2 {[%clk 0:01:08]}  d5 {[%clk 0:01:32]} 24. Bg3 {[%clk 0:01:08]}  Qd8 {[%clk 0:01:25]} 25. Qc1 {[%clk 0:01:02]}  d4 {[%clk 0:01:22]} 26. Na4 {[%clk 0:01:00]}  Ne3 {[%clk 0:01:19]} 27. Rxe3 {[%clk 0:00:53]}  dxe3 {[%clk 0:01:19]} 28. Qxe3 {[%clk 0:00:52]}  Rxc2 {[%clk 0:01:18]} 29. Nxb6 {[%clk 0:00:50]}  Rdd2 {[%clk 0:01:16]} 30. Bf2 {[%clk 0:00:29]}  Rd1 {[%clk 0:01:09]} 31. Kh2 {[%clk 0:00:20]}  Rxe1 {[%clk 0:01:05]} 32. Bxe1 {[%clk 0:00:21]}  Qd1 {[%clk 0:01:05]} 33. Nd4 {[%clk 0:00:14]}  Bxd4 {[%clk 0:01:02]} 0-1


[Site "https://www.chess.com"]

[Event "Titled Tuesday Blitz April 11 Early 2023"]
[White "Manon-og, Ramon Jr."]
[Black "Zampronha, Wladimir Camilo"]
[WhiteFideId "5200776"]
[BlackFideId "2103087"]
[WhiteElo "2391"]
[BlackElo "2176"]
[Result "1/2-1/2"]
[Round "11"]
[TimeControl "180+2"]
[Date "2023.04.11"]
[WhiteClock "0:00:07"]
[BlackClock "0:00:06"]

1. e4 {[%clk 0:03:00]}  c5 {[%clk 0:02:59]} 2. Nf3 {[%clk 0:03:01]}  e6 {[%clk 0:02:59]} 3. d4 {[%clk 0:03:00]}  cxd4 {[%clk 0:03:00]} 4. Nxd4 {[%clk 0:03:00]}  Nc6 {[%clk 0:03:01]} 5. Nxc6 {[%clk 0:03:00]}  bxc6 {[%clk 0:03:00]} 6. c4 {[%clk 0:03:00]}  Nf6 {[%clk 0:02:59]} 7. Nc3 {[%clk 0:02:54]}  Bb4 {[%clk 0:02:59]} 8. Bd3 {[%clk 0:02:54]}  e5 {[%clk 0:02:58]} 9. O-O {[%clk 0:02:54]}  O-O {[%clk 0:02:57]} 10. Bg5 {[%clk 0:02:54]}  h6 {[%clk 0:02:56]} 11. Bh4 {[%clk 0:02:54]}  g5 {[%clk 0:02:56]} 12. Bg3 {[%clk 0:02:54]}  d6 {[%clk 0:02:56]} 13. Qc2 {[%clk 0:02:53]}  Qe7 {[%clk 0:02:36]} 14. Rad1 {[%clk 0:02:51]}  Nh5 {[%clk 0:02:33]} 15. a3 {[%clk 0:02:38]}  Bc5 {[%clk 0:02:32]} 16. b4 {[%clk 0:02:35]}  Bd4 {[%clk 0:02:26]} 17. Ne2 {[%clk 0:02:30]}  Bb6 {[%clk 0:02:26]} 18. a4 {[%clk 0:02:28]}  a5 {[%clk 0:02:24]} 19. b5 {[%clk 0:02:28]}  Bb7 {[%clk 0:02:12]} 20. Qb3 {[%clk 0:02:21]}  Bc5 {[%clk 0:02:07]} 21. Nc3 {[%clk 0:02:16]}  Bd4 {[%clk 0:02:01]} 22. Be2 {[%clk 0:02:09]}  Nxg3 {[%clk 0:01:42]} 23. hxg3 {[%clk 0:02:08]}  Bxc3 {[%clk 0:01:40]} 24. Qxc3 {[%clk 0:02:07]}  cxb5 {[%clk 0:01:38]} 25. cxb5 {[%clk 0:02:05]}  Bxe4 {[%clk 0:01:36]} 26. Bf3 {[%clk 0:01:57]}  Bxf3 {[%clk 0:01:32]} 27. Qxf3 {[%clk 0:01:57]}  Rac8 {[%clk 0:01:22]} 28. Rc1 {[%clk 0:01:47]}  Qe6 {[%clk 0:01:04]} 29. Qb7 {[%clk 0:01:34]}  Rc4 {[%clk 0:00:57]} 30. Ra1 {[%clk 0:01:04]}  Qc8 {[%clk 0:00:55]} 31. Qa7 {[%clk 0:00:57]}  Qc7 {[%clk 0:00:55]} 32. Qa6 {[%clk 0:00:54]}  Rb8 {[%clk 0:00:48]} 33. Rfd1 {[%clk 0:00:51]}  Rd4 {[%clk 0:00:44]} 34. Rxd4 {[%clk 0:00:50]}  exd4 {[%clk 0:00:45]} 35. Rd1 {[%clk 0:00:48]}  Qc5 {[%clk 0:00:21]} 36. Qxa5 {[%clk 0:00:46]}  Re8 {[%clk 0:00:17]} 37. Qd2 {[%clk 0:00:42]}  Ra8 {[%clk 0:00:12]} 38. Qxd4 {[%clk 0:00:41]}  Qc2 {[%clk 0:00:11]} 39. b6 {[%clk 0:00:34]}  Rxa4 {[%clk 0:00:10]} 40. b7 {[%clk 0:00:34]}  Rb4 {[%clk 0:00:10]} 41. Qxb4 {[%clk 0:00:29]}  Qxd1+ {[%clk 0:00:09]} 42. Kh2 {[%clk 0:00:29]}  Qh5+ {[%clk 0:00:10]} 43. Kg1 {[%clk 0:00:27]}  Qd1+ {[%clk 0:00:10]} 44. Kh2 {[%clk 0:00:27]}  Qh5+ {[%clk 0:00:10]} 45. Qh4 {[%clk 0:00:23]}  gxh4 {[%clk 0:00:10]} 46. b8=Q+ {[%clk 0:00:23]}  Kg7 {[%clk 0:00:10]} 47. Qxd6 {[%clk 0:00:21]}  hxg3+ {[%clk 0:00:09]} 48. Kxg3 {[%clk 0:00:21]}  Qg5+ {[%clk 0:00:07]} 49. Kf3 {[%clk 0:00:21]}  Qf6+ {[%clk 0:00:07]} 50. Qxf6+ {[%clk 0:00:21]}  Kxf6 {[%clk 0:00:08]} 51. Kf4 {[%clk 0:00:20]}  Kg6 {[%clk 0:00:07]} 52. g4 {[%clk 0:00:18]}  Kf6 {[%clk 0:00:07]} 53. f3 {[%clk 0:00:07]}  Ke6 {[%clk 0:00:07]} 54. Ke4 {[%clk 0:00:04]}  Kf6 {[%clk 0:00:07]} 55. Kf4 {[%clk 0:00:04]}  Ke6 {[%clk 0:00:07]} 56. Kg3 {[%clk 0:00:05]}  Kf6 {[%clk 0:00:06]} 57. Kh4 {[%clk 0:00:05]}  Kg6 {[%clk 0:00:04]} 58. f4 {[%clk 0:00:05]}  Kf6 {[%clk 0:00:04]} 59. Kh5 {[%clk 0:00:05]}  Kg7 {[%clk 0:00:04]} 60. g5 {[%clk 0:00:04]}  hxg5 {[%clk 0:00:04]} 61. Kxg5 {[%clk 0:00:05]}  f6+ {[%clk 0:00:03]} 62. Kf5 {[%clk 0:00:06]}  Kf7 {[%clk 0:00:04]} 63. Ke4 {[%clk 0:00:06]}  Ke6 {[%clk 0:00:05]} 64. f5+ {[%clk 0:00:05]}  Kd6 {[%clk 0:00:04]} 65. Kd4 {[%clk 0:00:06]}  Kc6 {[%clk 0:00:05]} 66. Kc4 {[%clk 0:00:05]}  Kd6 {[%clk 0:00:05]} 67. Kd4 {[%clk 0:00:06]}  Kc6 {[%clk 0:00:06]} 68. Kc4 {[%clk 0:00:06]}  Kd6 {[%clk 0:00:06]} 69. Kd4 {[%clk 0:00:07]} 1/2-1/2


[Site "https://www.chess.com"]

[Event "Titled Tuesday Blitz April 11 Early 2023"]
[White "Burdalev, Kirill"]
[Black "Van Osch, Mees"]
[WhiteFideId "14121913"]
[BlackFideId "1035967"]
[WhiteElo "2236"]
[BlackElo "2324"]
[Result "0-1"]
[Round "11"]
[TimeControl "180+2"]
[Date "2023.04.11"]
[WhiteClock "0:00:01"]
[BlackClock "0:00:26"]

1. d4 {[%clk 0:03:00]}  d6 {[%clk 0:02:53]} 2. Nf3 {[%clk 0:02:57]}  e6 {[%clk 0:02:50]} 3. c4 {[%clk 0:02:55]}  a6 {[%clk 0:02:49]} 4. Nc3 {[%clk 0:02:49]}  Nf6 {[%clk 0:02:46]} 5. g3 {[%clk 0:02:47]}  b5 {[%clk 0:02:45]} 6. cxb5 {[%clk 0:02:44]}  axb5 {[%clk 0:02:46]} 7. Nxb5 {[%clk 0:02:43]}  Bb7 {[%clk 0:02:41]} 8. Bg2 {[%clk 0:02:41]}  Be7 {[%clk 0:02:41]} 9. O-O {[%clk 0:02:39]}  O-O {[%clk 0:02:41]} 10. b3 {[%clk 0:02:35]}  Nc6 {[%clk 0:02:36]} 11. Bb2 {[%clk 0:02:34]}  Nb4 {[%clk 0:02:34]} 12. a3 {[%clk 0:02:27]}  Nbd5 {[%clk 0:02:32]} 13. Qc2 {[%clk 0:02:14]}  Qd7 {[%clk 0:02:29]} 14. Nc3 {[%clk 0:02:02]}  Nxc3 {[%clk 0:02:27]} 15. Bxc3 {[%clk 0:02:00]}  Be4 {[%clk 0:02:27]} 16. Qb2 {[%clk 0:01:58]}  Rfb8 {[%clk 0:02:23]} 17. b4 {[%clk 0:01:50]}  Nd5 {[%clk 0:02:23]} 18. Bd2 {[%clk 0:01:49]}  Bf6 {[%clk 0:02:19]} 19. Rfc1 {[%clk 0:01:39]}  c5 {[%clk 0:02:19]} 20. Ne5 {[%clk 0:01:12]}  dxe5 {[%clk 0:02:07]} 21. Bxe4 {[%clk 0:00:36]}  cxb4 {[%clk 0:01:56]} 22. axb4 {[%clk 0:00:29]}  Rxa1 {[%clk 0:01:52]} 23. Qxa1 {[%clk 0:00:22]}  exd4 {[%clk 0:01:52]} 24. Qb1 {[%clk 0:00:16]}  Nc3 {[%clk 0:01:49]} 25. Bxc3 {[%clk 0:00:15]}  dxc3 {[%clk 0:01:50]} 26. Bxh7+ {[%clk 0:00:15]}  Kh8 {[%clk 0:01:50]} 27. Bd3 {[%clk 0:00:12]}  Qd4 {[%clk 0:01:39]} 28. b5 {[%clk 0:00:11]}  Bg5 {[%clk 0:01:39]} 29. Rc2 {[%clk 0:00:10]}  Bd2 {[%clk 0:01:38]} 30. Qb3 {[%clk 0:00:09]}  g6 {[%clk 0:01:36]} 31. Qc4 {[%clk 0:00:09]}  Qa7 {[%clk 0:01:32]} 32. Kg2 {[%clk 0:00:09]}  Kg7 {[%clk 0:01:30]} 33. h4 {[%clk 0:00:08]}  Qb7+ {[%clk 0:01:27]} 34. f3 {[%clk 0:00:06]}  Qb6 {[%clk 0:01:27]} 35. Qe4 {[%clk 0:00:04]}  Rc8 {[%clk 0:01:23]} 36. h5 {[%clk 0:00:04]}  Qd6 {[%clk 0:01:10]} 37. hxg6 {[%clk 0:00:03]}  f5 {[%clk 0:01:10]} 38. Qa4 {[%clk 0:00:02]}  Kxg6 {[%clk 0:01:08]} 39. Qa6 {[%clk 0:00:01]}  Qd7 {[%clk 0:00:58]} 40. Qa4 {[%clk 0:00:01]}  Rg8 {[%clk 0:00:56]} 41. Qg4+ {[%clk 0:00:01]}  Kf7 {[%clk 0:00:53]} 42. Qh5+ {[%clk 0:00:02]}  Kf8 {[%clk 0:00:53]} 43. b6 {[%clk 0:00:02]}  Qd6 {[%clk 0:00:52]} 44. Qh6+ {[%clk 0:00:02]}  Rg7 {[%clk 0:00:51]} 45. Qh8+ {[%clk 0:00:02]}  Kf7 {[%clk 0:00:51]} 46. Qh5+ {[%clk 0:00:02]}  Ke7 {[%clk 0:00:50]} 47. Qh4+ {[%clk 0:00:02]}  Kf8 {[%clk 0:00:48]} 48. Ra2 {[%clk 0:00:03]}  Qxb6 {[%clk 0:00:42]} 49. Ra8+ {[%clk 0:00:01]}  Kf7 {[%clk 0:00:43]} 50. Qh5+ {[%clk 0:00:01]}  Ke7 {[%clk 0:00:43]} 51. Re8+ {[%clk 0:00:02]}  Kd6 {[%clk 0:00:43]} 52. Rh8 {[%clk 0:00:01]}  Rxg3+ {[%clk 0:00:40]} 53. Kxg3 {[%clk 0:00:01]}  Qg1+ {[%clk 0:00:41]} 54. Kh3 {[%clk 0:00:01]}  Qh1+ {[%clk 0:00:36]} 55. Kg3 {[%clk 0:00:02]}  f4+ {[%clk 0:00:26]} 56. Kg4 {[%clk 0:00:01]}  Qg2+ {[%clk 0:00:26]} 57. Kh4 {[%clk 0:00:01]}  Be1# {[%clk 0:00:26]} 0-1


[Site "https://www.chess.com"]